fUSD/lending_fUSD_20251129
["ID","MTS","AMOUNT","RATE_DAILY","PERIOD"]
[395101855,1764427860679,-151.0,0.000248,7]
[395101856,1764427860690,-279.252591,0.000248,7]
[395101857,1764427860703,-315.256833,0.000248,7]
[395101858,1764427860715,-174.255777,0.000248,7]
[395101859,1764427860732,-315.256828,0.000248,7]
[395101860,1764427860744,-174.255777,0.000248,7]
[395101861,1764427860756,-174.255777,0.000248,7]
[395101862,1764427860768,-174.25578,0.000248,7]
[395101863,1764427860780,-151.0,0.000248,7]
[395101864,1764427860793,-151.0,0.000248,7]
[395101865,1764427860804,-152.440919,0.000248,7]
[395101866,1764427860817,-1115.0,0.000248,2]
[395101867,1764427860829,-151.0,0.000248,7]
[395101868,1764427860842,-180.76987205,0.000248,7]
[395101869,1764427860855,-151.0,0.000248,7]
[395101870,1764427860867,-1190.262288,0.000248,7]
[395101871,1764427860880,-1190.262288,0.000248,7]
[395101872,1764427860892,-1190.262288,0.000248,7]
[395101873,1764427860904,-1190.262288,0.000248,7]
[395101874,1764427860916,-1190.262288,0.000248,7]
[395101875,1764427860929,-1190.262288,0.000248,7]
[395101876,1764427860942,-1190.262288,0.000248,7]
[395101877,1764427860955,-1190.262288,0.000248,7]
[395101878,1764427860968,-151.0,0.000248,7]
[395101879,1764427860982,-151.0,0.000248,7]
[395101880,1764427860994,-151.0,0.000248,7]
[395101881,1764427861007,-151.0,0.000248,7]
[395101882,1764427861019,-151.0,0.000248,7]
[395101883,1764427861032,-303.551281,0.000248,7]
[395101884,1764427861044,-303.551281,0.000248,7]
[395101885,1764427861056,-786.700385,0.000248,7]
[395101886,1764427861068,-786.700385,0.000248,7]
[395101887,1764427861081,-303.551281,0.000248,7]
[395101888,1764427861093,-303.551281,0.000248,7]
[395101889,1764427861105,-786.700385,0.000248,7]
[395101890,1764427861117,-786.700385,0.000248,7]
[395101891,1764427861129,-303.551281,0.000248,7]
[395101892,1764427861143,-303.551281,0.000248,7]
[395101893,1764427861157,-345.568016,0.000248,7]
[395101894,1764427861170,-786.700385,0.000248,7]
[395101895,1764427861184,-345.568016,0.000248,7]
[395101896,1764427861198,-786.700385,0.000248,7]
[395101897,1764427861210,-303.551281,0.000248,7]
[395101898,1764427861223,-345.568016,0.000248,7]
[395101899,1764427861236,-151.0,0.000248,7]
[395101900,1764427861248,-786.700385,0.000248,7]
[395101901,1764427861260,-345.568016,0.000248,7]
[395101902,1764427861274,-151.0,0.000248,7]
[395101903,1764427861285,-786.700378,0.000248,7]
[395101904,1764427861297,-303.551273,0.000248,7]
[395101905,1764427861308,-345.568016,0.000248,7]
[395101906,1764427861321,-345.568016,0.000248,7]
[395101907,1764427861332,-345.568016,0.000248,7]
[395101908,1764427861345,-345.568009,0.000248,7]
[395101909,1764427861357,-151.0,0.000248,7]
[395101910,1764427861372,-245.829605,0.000248,7]
[395101911,1764427861385,-2887.785338,0.000248,7]
[395101912,1764427861397,-2887.785338,0.000248,7]
[395101913,1764427861410,-2887.785338,0.000248,7]
[395101914,1764427861422,-2887.785338,0.000248,7]
[395101915,1764427861433,-2887.785338,0.000248,7]
[395101916,1764427861445,-2887.785338,0.000248,7]
[395101917,1764427861456,-2887.785338,0.000248,7]
[395101918,1764427861467,-2887.785338,0.000248,7]
[395101919,1764427861479,-151.0,0.000248,7]
[395101920,1764427861490,-151.0,0.000248,7]
[395101921,1764427861502,-151.0,0.000248,7]
[395101922,1764427861513,-151.0,0.000248,7]
[395101923,1764427861524,-175.880426,0.000248,7]
[395101924,1764427861536,-151.0,0.000248,7]
[395101925,1764427861548,-151.0,0.000248,7]
[395101926,1764427861559,-151.0,0.000248,7]
[395101927,1764427861571,-178.472385,0.000248,7]
[395101928,1764427861582,-158.350754,0.000248,7]
[395101929,1764427861594,-158.350754,0.000248,7]
[395101930,1764427861606,-158.350754,0.000248,7]
[395101931,1764427861618,-158.350754,0.000248,7]
[395101932,1764427861629,-158.350754,0.000248,7]
[395101933,1764427861641,-158.350754,0.000248,7]
[395101934,1764427861653,-536218.574314,0.000248,3]
[395101935,1764427861664,-158.350754,0.000248,7]
[395101936,1764427861676,-158.350754,0.000248,7]
[395101937,1764427861688,-696.48333153,0.000248,2]
[395101938,1764427861699,-696.48333153,0.000248,2]
[395101939,1764427861711,-340.295419,0.000248,7]
[395101940,1764427861726,-340.295419,0.000248,7]
[395101941,1764427861738,-1921.478575,0.000248,7]
[395101942,1764427861750,-1921.478575,0.000248,7]
[395101943,1764427861763,-340.295419,0.000248,7]
[395101944,1764427861775,-340.295419,0.000248,7]
[395101945,1764427861787,-1921.478575,0.000248,7]
[395101946,1764427861799,-1921.478575,0.000248,7]
[395101947,1764427861811,-340.295419,0.000248,7]
[395101948,1764427861822,-340.295419,0.000248,7]
[395101949,1764427861834,-1921.478575,0.000248,7]
[395101950,1764427861846,-1921.478575,0.000248,7]
[395101951,1764427861858,-340.295419,0.000248,7]
[395101952,1764427861872,-340.295418,0.000248,7]
[395101953,1764427861883,-1921.478575,0.000248,7]
[395101954,1764427861897,-1921.478576,0.000248,7]
[395101955,1764427861910,-372.503113,0.000248,7]
[395101956,1764427861921,-372.503113,0.000248,7]
[395101957,1764427861934,-372.503113,0.000248,7]
[395101958,1764427861946,-372.503113,0.000248,7]
[395101959,1764427861958,-151.0,0.000248,7]
[395101960,1764427861969,-151.0,0.000248,7]
[395101961,1764427861980,-372.503113,0.000248,7]
[395101962,1764427861992,-279.53315,0.000248,7]
[395101963,1764427862004,-372.503113,0.000248,7]
[395101964,1764427862015,-279.53315,0.000248,7]
[395101965,1764427862026,-151.0,0.000248,7]
[395101966,1764427862039,-151.0,0.000248,7]
[395101967,1764427862052,-151.0,0.000248,7]
[395101968,1764427862064,-151.0,0.000248,7]
[395101969,1764427862076,-151.0,0.000248,7]
[395101970,1764427862087,-180.878714,0.000248,7]
[395101971,1764427862098,-279.53315,0.000248,7]
[395101972,1764427862110,-279.53315,0.000248,7]
[395101973,1764427862124,-372.503113,0.000248,7]
[395101974,1764427862136,-151.0,0.000248,7]
[395101975,1764427862154,-372.503115,0.000248,7]
[395101976,1764427862166,-151.0,0.000248,7]
[395101977,1764427862178,-279.53315,0.000248,7]
[395101978,1764427862189,-279.53315,0.000248,7]
[395101979,1764427862202,-1281.534657,0.000248,7]
[395101980,1764427862214,-444.344971,0.000248,7]
[395101981,1764427862226,-1022.076448,0.000248,7]
[395101982,1764427862239,-1281.534657,0.000248,7]
[395101983,1764427862251,-444.344971,0.000248,7]
[395101984,1764427862263,-1022.076448,0.000248,7]
[395101985,1764427862275,-279.53315,0.000248,7]
[395101986,1764427862286,-279.533149,0.000248,7]
[395101987,1764427862298,-1022.076448,0.000248,7]
[395101988,1764427862309,-444.344971,0.000248,7]
[395101989,1764427862321,-1281.534657,0.000248,7]
[395101990,1764427862333,-1022.076448,0.000248,7]
[395101991,1764427862344,-444.344971,0.000248,7]
[395101992,1764427862356,-1281.534657,0.000248,7]
[395101993,1764427862368,-1022.076448,0.000248,7]
[395101994,1764427862380,-1281.534657,0.000248,7]
[395101995,1764427862975,-444.344971,0.000248,7]
[395101996,1764427863000,-1022.076448,0.000248,7]
[395101997,1764427863032,-444.344971,0.000248,7]
[395101998,1764427863044,-1281.534657,0.000248,7]
[395101999,1764427863053,-151.0,0.000248,7]
[395102000,1764427863063,-151.0,0.000248,7]
[395102001,1764427863073,-1022.076448,0.000248,7]
[395102002,1764427863082,-1281.534657,0.000248,7]
[395102003,1764427863092,-444.344971,0.000248,7]
[395102004,1764427863101,-1022.076444,0.000248,7]
[395102005,1764427863111,-1281.534648,0.000248,7]
[395102006,1764427863120,-444.344979,0.000248,7]
[395102007,1764427863130,-151.0,0.000248,7]
[395102008,1764427863139,-151.0,0.000248,7]
[395102009,1764427863148,-151.0,0.000248,7]
[395102010,1764427863158,-151.0,0.000248,7]
[395102011,1764427863167,-151.0,0.000248,7]
[395102012,1764427863176,-151.0,0.000248,7]
[395102013,1764427863185,-151.0,0.000248,7]
[395102014,1764427863194,-151.0,0.000248,7]
[395102015,1764427863203,-185.895595,0.000248,7]
[395102016,1764427863212,-654.42245,0.000248,7]
[395102017,1764427863222,-654.42245,0.000248,7]
[395102018,1764427863231,-654.42245,0.000248,7]
[395102019,1764427863240,-654.42245,0.000248,7]
[395102020,1764427863249,-654.42245,0.000248,7]
[395102021,1764427863258,-654.42245,0.000248,7]
[395102022,1764427863267,-654.42245,0.000248,7]
[395102023,1764427863277,-654.422456,0.000248,7]
[395102024,1764427863286,-269.2477,0.000248,7]
[395102025,1764427863295,-269.2477,0.000248,7]
[395102026,1764427863304,-269.2477,0.000248,7]
[395102027,1764427863312,-269.2477,0.000248,7]
[395102028,1764427863321,-269.2477,0.000248,7]
[395102029,1764427863331,-269.2477,0.000248,7]
[395102030,1764427863339,-269.2477,0.000248,7]
[395102031,1764427863348,-269.247707,0.000248,7]
[395102032,1764427863357,-151.0,0.000248,7]
[395102033,1764427863367,-151.0,0.000248,7]
[395102034,1764427863376,-458.072187,0.000248,7]
[395102035,1764427863385,-163.789142,0.000248,7]
[395102036,1764427863394,-458.072187,0.000248,7]
[395102037,1764427863403,-458.072187,0.000248,7]
[395102038,1764427863412,-458.072187,0.000248,7]
[395102039,1764427863421,-814.959456,0.000248,7]
[395102040,1764427863430,-814.959456,0.000248,7]
[395102041,1764427863440,-814.959456,0.000248,7]
[395102042,1764427863451,-814.959463,0.000248,7]
[395102043,1764427863459,-3941.447001,0.000248,7]
[395102044,1764427863469,-3941.447001,0.000248,7]
[395102045,1764427863479,-3941.447001,0.000248,7]
[395102046,1764427863489,-3941.446998,0.000248,7]
[395102047,1764427863498,-1586.251219,0.000248,7]
[395102048,1764427863507,-1586.251219,0.000248,7]
[395102049,1764427863516,-151.0,0.000248,7]
[395102050,1764427863526,-196.212564,0.000248,7]
[395102051,1764427863537,-1586.251219,0.000248,7]
[395102052,1764427863546,-188.893935,0.000248,7]
[395102053,1764427863556,-1586.251212,0.000248,7]
[395102054,1764427863566,-384.512153,0.000248,7]
[395102055,1764427863575,-384.512153,0.000248,7]
[395102056,1764427863583,-384.512153,0.000248,7]
[395102057,1764427863592,-216.202409,0.000248,7]
[395102058,1764427863601,-384.512149,0.000248,7]
[395102059,1764427863610,-216.202409,0.000248,7]
[395102060,1764427863620,-182.826416,0.000248,7]
[395102061,1764427863630,-216.202409,0.000248,7]
[395102062,1764427863640,-182.826416,0.000248,7]
[395102063,1764427863649,-276.442429,0.000248,7]
[395102064,1764427863658,-554.586815,0.000248,7]
[395102065,1764427863667,-216.202408,0.000248,7]
[395102066,1764427863676,-182.826416,0.000248,7]
[395102067,1764427863686,-554.586815,0.000248,7]
[395102068,1764427863695,-182.826414,0.000248,7]
[395102069,1764427863704,-554.586815,0.000248,7]
[395102070,1764427863714,-554.586817,0.000248,7]
[395102071,1764427863728,-592.369674,0.000248,7]
[395102072,1764427863738,-592.369674,0.000248,7]
[395102073,1764427863748,-592.369674,0.000248,7]
[395102074,1764427863757,-491.79674248,0.00024907,7]
[395102075,1764427863768,-216.0,0.0002493,30]
[395102076,1764427863777,-1000.0,0.00024931,2]
[395102077,1764427863788,-1000.0,0.00024931,2]
[395102078,1764427863797,-17253.21632027,0.00024932,2]
[395102079,1764427863807,-150.0,0.00024973,2]
[395102080,1764427863815,-506.73447825,0.00025,7]
[395102081,1764427863825,-151.0,0.00025,2]
[395102082,1764427863836,-23267.02008559,0.00025,2]
[395102083,1764427863845,-1104.16348443,0.00025,2]
[395102084,1764427863855,-1303.89328077,0.00025,4]
[395102085,1764427863865,-205.72090959,0.00025,2]
[395102086,1764427863875,-1769.31698452,0.00025,2]
[395102087,1764427863884,-218.24228986,0.00025,2]
[395102088,1764427863894,-210.0,0.00025,2]
[395102089,1764427863903,-1055.25199236,0.00025,2]
[395102090,1764427863912,-165.85693637,0.00025,2]
[395102091,1764427863921,-169.09855285,0.00025,5]
[395102092,1764427863930,-674.23497288,0.00025,30]
[395102093,1764427863939,-3017.69574374,0.00025,2]
[395102094,1764427863948,-7075.93889213,0.00025,2]
[395102095,1764427863957,-8439.01917582,0.00025,2]
[395102096,1764427863966,-348.50978596,0.00025,2]
[395102097,1764427863976,-151.392,0.00025,30]
[395102098,1764427863985,-348.50978492,0.00025,7]
[395102099,1764427863995,-27905.3,0.00025,7]
[395102100,1764427864004,-150.0,0.00025,2]
[395102101,1764427864014,-450.0,0.00025,2]
[395102102,1764427864023,-443.0,0.00025,7]
[395102103,1764427864033,-176.34796112,0.00025,2]
[395102104,1764427864043,-7000.0,0.00025,2]
[395102105,1764427864052,-2074.15637208,0.00025,120]
[395102106,1764427864062,-379.47419042,0.00025,120]
[395102107,1764427864072,-24029.41471509,0.00025008,2]
[395102108,1764427864082,-253.51,0.00025014,2]
[395102109,1764427864092,-500.0,0.00025067,7]
[395102110,1764427864102,-373.07297731,0.00025134,2]
[395102111,1764427864113,-332.60791905,0.00025134,2]
[395102112,1764427864123,-409.83061873,0.00025181,7]
[395102113,1764427864134,-1000.0,0.00025205,2]
[395102114,1764427864145,-225.18697532,0.00025206,2]
[395102115,1764427864155,-207.46936817,0.00025221,2]
[395102116,1764427864165,-3400.79437713,0.00025225,2]
[395102117,1764427864175,-845.57859082,0.00025234,2]
[395102118,1764427864186,-845.57859082,0.00025238,2]
[395102119,1764427864196,-845.57859082,0.00025242,2]
[395102120,1764427864206,-845.57859082,0.00025246,2]
[395102121,1764427864216,-845.57859082,0.0002525,2]
[395102122,1764427864225,-1603.0,0.000253,2]
[395102123,1764427864235,-2300.0,0.00025348,7]
[395102124,1764427864244,-3000.0,0.00025348,7]
[395102125,1764427864254,-150.0,0.00025384,2]
[395102126,1764427864263,-288.31928454,0.00025432,22]
[395102127,1764427864274,-1000.0,0.00025479,2]
[395102128,1764427864283,-427.45964135,0.000255,7]
[395102129,1764427864292,-156.11302107,0.0002552,2]
[395102130,1764427864302,-250.0,0.00025521,2]
[395102131,1764427864312,-348.50978596,0.00025586,17]
[395102132,1764427864322,-327.86449498,0.00025592,7]
[395102133,1764427864331,-443.0,0.00025646,7]
[395102134,1764427864340,-27905.3,0.000257,7]
[395102135,1764427864350,-262.00651506,0.000257,2]
[395102136,1764427864359,-500.0,0.00025733,7]
[395102137,1764427864369,-233.51889341,0.00025754,2]
[395102138,1764427864378,-150.0,0.00025767,2]
[395102139,1764427864386,-427.45964135,0.000258,3]
[395102140,1764427864395,-500.0,0.00025934,7]
[395102141,1764427864405,-595.55355372,0.0002599,2]
[395102142,1764427864414,-214.67073604,0.00026,2]
[395102143,1764427864424,-161.58618057,0.00026,2]
[395102144,1764427864433,-200.0,0.00026,120]
[395102145,1764427864442,-4485.00033653,0.00026,2]
[395102146,1764427864451,-171.0,0.00026,7]
[395102147,1764427864460,-245.89837124,0.00026003,7]
[395102148,1764427864470,-3320.81956629,0.00026035,2]
[395102149,1764427864479,-500.0,0.00026063,7]
[395102150,1764427864488,-350.0,0.00026068,2]
[395102151,1764427864498,-156.0,0.0002607,120]
[395102152,1764427864507,-156.0,0.0002608,120]
[395102153,1764427864516,-156.0,0.0002609,120]
[395102154,1764427864527,-288.31928454,0.00026099,23]
[395102155,1764427864536,-931.76684025,0.00026137,2]
[395102156,1764427864546,-150.0,0.00026151,2]
[395102157,1764427864555,-348.50978596,0.00026173,32]
[395102158,1764427864564,-242.15909246,0.00026302,2]
[395102159,1764427864574,-479.66,0.00026343,2]
[395102160,1764427864583,-479.66,0.00026343,2]
[395102161,1764427864593,-1178.99078687,0.0002639,2]
[395102162,1764427864602,-27253.94675872,0.000264,2]
[395102163,1764427864612,-27905.3,0.000264,7]
[395102164,1764427864622,-500.0,0.00026438,2]
[395102165,1764427864631,-510.22158848,0.00026438,2]
[395102166,1764427864641,-3000.0,0.00026444,7]
[395102167,1764427864650,-180.0,0.00026464,2]
[395102168,1764427864660,-427.45964135,0.000265,3]
[395102169,1764427864670,-386.87667747,0.00026503,2]
[395102170,1764427864679,-344.91441206,0.00026503,2]
[395102171,1764427864688,-500.0,0.0002653,7]
[395102172,1764427864698,-150.0,0.00026534,2]
[395102173,1764427864707,-17253.21632027,0.00026588,2]
[395102174,1764427864717,-450.0,0.00026616,2]
[395102175,1764427864730,-443.0,0.00026641,7]
[395102176,1764427864740,-1000.0,0.00026667,7]
[395102177,1764427864749,-1000.0,0.00026676,2]
[395102178,1764427864760,-24029.41471509,0.00026682,2]
[395102179,1764427864769,-163.93224749,0.00026688,7]
[395102180,1764427864778,-348.50978596,0.00026759,48]
[395102181,1764427864789,-576.53856907,0.00026766,25]
[395102182,1764427864800,-251.11897888,0.0002685,2]
[395102183,1764427864810,-242.87,0.000269,14]
[395102184,1764427864820,-159.29122252,0.00026918,2]
[395102185,1764427864830,-250.0,0.00027,2]
[395102186,1764427864840,-1025.13685053,0.00027,2]
[395102187,1764427864850,-530.0,0.00027,2]
[395102188,1764427864859,-461.34391137,0.00027,30]
[395102189,1764427864869,-162.76619512,0.00027,2]
[395102190,1764427864878,-500.0,0.00027,2]
[395102191,1764427864887,-7000.0,0.00027,2]
[395102192,1764427864897,-203.69,0.0002701,7]
[395102193,1764427864907,-268.96841852,0.00027014,5]
[395102194,1764427864917,-27905.3,0.000271,7]
[395102195,1764427864928,-3654.51,0.00027123,2]
[395102196,1764427864938,-550.0,0.00027164,2]
[395102197,1764427864949,-579.53531275,0.00027297,2]
[395102198,1764427864960,-1089.01,0.00027302,2]
[395102199,1764427864969,-479.66,0.00027302,2]
[395102200,1764427864979,-348.50978596,0.00027345,63]
[395102201,1764427864988,-150.0,0.00027369,2]
[395102202,1764427864998,-1434.56207526,0.0002739,7]
[395102203,1764427865007,-2000.0,0.0002739,120]
[395102204,1764427865016,-4076.11301972,0.0002739,2]
[395102205,1764427865025,-8052.32119379,0.0002739,2]
[395102206,1764427865034,-500.92742179,0.00027396,2]
[395102207,1764427865043,-2174.38066301,0.00027397,120]
[395102208,1764427865052,-10000.0,0.00027397,120]
[395102209,1764427865062,-10000.0,0.00027397,120]
[395102210,1764427865072,-10000.0,0.00027397,120]
[395102211,1764427865083,-1078.51142158,0.00027397,120]
[395102212,1764427865093,-1588.16665985,0.00027397,120]
[395102213,1764427865103,-2972.05422676,0.00027397,120]
[395102214,1764427865113,-150.0,0.00027397,2]
[395102215,1764427865123,-514.69,0.00027397,2]
[395102216,1764427865133,-300.0,0.00027397,2]
[395102217,1764427865143,-1215.62,0.00027397,2]
[395102218,1764427865152,-151.0,0.00027397,7]
[395102219,1764427865161,-151.0,0.00027397,7]
[395102220,1764427865171,-151.0,0.00027397,7]
[395102221,1764427865180,-151.0,0.00027397,7]
[395102222,1764427865189,-151.0,0.00027397,7]
[395102223,1764427865198,-151.0,0.00027397,7]
[395102224,1764427865207,-151.0,0.00027397,7]
[395102225,1764427865216,-151.0,0.00027397,7]
[395102226,1764427865225,-151.0,0.00027397,7]
[395102227,1764427865234,-151.0,0.00027397,7]
[395102228,1764427865243,-151.0,0.00027397,7]
[395102229,1764427865252,-151.0,0.00027397,7]
[395102230,1764427865262,-151.0,0.00027397,7]
[395102231,1764427865273,-151.0,0.00027397,7]
[395102232,1764427865283,-151.0,0.00027397,7]
[395102233,1764427865292,-151.0,0.00027397,7]
[395102234,1764427865301,-151.0,0.00027397,7]
[395102235,1764427865310,-151.0,0.00027397,7]
[395102236,1764427865319,-293.239941,0.00027397,7]
[395102237,1764427865328,-34310.33,0.00027397,2]
[395102238,1764427865338,-151.0,0.00027397,7]
[395102239,1764427865347,-151.0,0.00027397,7]
[395102240,1764427865356,-151.0,0.00027397,7]
[395102241,1764427865365,-157.129587,0.00027397,7]
[395102242,1764427865377,-800.0,0.00027397,5]
[395102243,1764427865386,-162.22002256,0.00027397,5]
[395102244,1764427865395,-150.0,0.00027397,5]
[395102245,1764427865404,-260.4103811,0.00027398,2]
[395102246,1764427865413,-1280.94,0.000274,7]
[395102247,1764427865422,-755.58,0.000274,7]
[395102248,1764427865432,-12551.46,0.000274,2]
[395102249,1764427865442,-1000.0,0.000274,120]
[395102250,1764427865451,-1536.63,0.000274,2]
[395102251,1764427865459,-1536.63,0.000274,2]
[395102252,1764427865468,-1536.63,0.000274,2]
[395102253,1764427865478,-1536.63,0.000274,2]
[395102254,1764427865487,-1536.63,0.000274,2]
[395102255,1764427865497,-199.37786935,0.000275,2]
[395102256,1764427865506,-544.65499946,0.000275,2]
[395102257,1764427865516,-1603.0,0.00027503,2]
[395102258,1764427865525,-1321.0,0.00027503,2]
[395102259,1764427865534,-1258.0,0.00027503,2]
[395102260,1764427865543,-640.0,0.00027503,2]
[395102261,1764427865552,-150.0,0.00027503,2]
[395102262,1764427865561,-150.0,0.00027534,2]
[395102263,1764427865570,-2300.0,0.0002754,14]
[395102264,1764427865579,-3000.0,0.0002754,14]
[395102265,1764427865588,-203.56127427,0.00027671,2]
[395102266,1764427865598,-8213.81,0.00027671,2]
[395102267,1764427865608,-650.0,0.00027712,5]
[395102268,1764427865617,-642.88768477,0.00027716,7]
[395102269,1764427865627,-500.0,0.00027735,7]
[395102270,1764427865636,-9567.55576084,0.00027772,2]
[395102271,1764427865646,-591.06720878,0.00027772,2]
[395102272,1764427865655,-27905.3,0.000278,7]
[395102273,1764427865665,-401.19111454,0.00027872,2]
[395102274,1764427865674,-357.6762453,0.00027872,2]
[395102275,1764427865684,-479.66,0.00027877,2]
[395102276,1764427865694,-959.32,0.00027877,2]
[395102277,1764427865704,-12551.46,0.000279,2]
[395102278,1764427865924,-348.50978596,0.00027932,79]
[395102279,1764427865967,-709.85576285,0.00027945,5]
[395102280,1764427865977,-250.0,0.00027945,5]
[395102281,1764427865987,-270.0455652,0.00027946,2]
[395102282,1764427865996,-444.0,0.00027973,14]
[395102283,1764427866006,-160.0,0.00028,2]
[395102284,1764427866015,-547.79480778,0.00028,2]
[395102285,1764427866024,-1929.74413952,0.00028,120]
[395102286,1764427866033,-1181.3972914,0.00028,120]
[395102287,1764427866042,-154.33853999,0.00028,120]
[395102288,1764427866051,-1000.0,0.00028,120]
[395102289,1764427866060,-32734.29800775,0.00028,2]
[395102290,1764427866069,-16317.34192081,0.00028,3]
[395102291,1764427866078,-906.84281214,0.00028,60]
[395102292,1764427866088,-755.58,0.000281,7]
[395102293,1764427866098,-2000.0,0.000281,2]
[395102294,1764427866107,-500.0,0.00028156,7]
[395102295,1764427866116,-17253.21632027,0.00028244,2]
[395102296,1764427866125,-649.31368495,0.0002826,5]
[395102297,1764427866134,-959.32,0.00028261,2]
[395102298,1764427866144,-479.66,0.00028261,2]
[395102299,1764427866155,-477.6,0.00028261,2]
[395102300,1764427866164,-479.66,0.00028261,2]
[395102301,1764427866174,-479.66,0.00028261,2]
[395102302,1764427866184,-169.91362514,0.00028297,120]
[395102303,1764427866194,-1280.94,0.000283,7]
[395102304,1764427866205,-24029.41471509,0.00028356,2]
[395102305,1764427866215,-3000.0,0.00028362,14]
[395102306,1764427866224,-350.0,0.00028493,5]
[395102307,1764427866235,-280.03725112,0.00028494,2]
[395102308,1764427866246,-12551.46,0.000285,2]
[395102309,1764427866256,-348.50978596,0.00028518,94]
[395102310,1764427866266,-1395.85381451,0.00028526,2]
[395102311,1764427866276,-27905.3,0.000286,7]
[395102312,1764427866286,-1287.16835794,0.00028646,15]
[395102313,1764427866295,-156.0,0.0002867,120]
[395102314,1764427866304,-156.0,0.0002868,120]
[395102315,1764427866314,-156.0,0.0002869,120]
[395102316,1764427866325,-1000000.0,0.000288,10]
[395102317,1764427866335,-479.66,0.00028836,2]
[395102318,1764427866345,-3400.79437713,0.00028894,2]
[395102319,1764427866354,-176.07,0.00028896,2]
[395102320,1764427866364,-755.58,0.000289,7]
[395102321,1764427866373,-427.45964135,0.00029,10]
[395102322,1764427866382,-500.0,0.00029022,7]
[395102323,1764427866394,-450.0,0.00029041,5]
[395102324,1764427866403,-290.39862941,0.00029042,2]
[395102325,1764427866412,-152.0,0.00029082,3]
[395102326,1764427866422,-12551.46,0.000291,2]
[395102327,1764427866432,-2300.0,0.00029184,14]
[395102328,1764427866441,-3000.0,0.00029184,14]
[395102329,1764427866457,-176.34796112,0.00029216,110]
[395102330,1764427866466,-479.66,0.0002922,2]
[395102331,1764427866476,-479.66,0.0002922,2]
[395102332,1764427866488,-479.66,0.0002922,2]
[395102333,1764427866498,-479.66,0.0002922,2]
[395102334,1764427866508,-479.66,0.0002922,2]
[395102335,1764427866518,-416.03518578,0.00029241,2]
[395102336,1764427866529,-370.91026638,0.00029241,2]
[395102337,1764427866540,-233.98,0.00029272,30]
[395102338,1764427866551,-27905.3,0.000293,7]
[395102339,1764427866561,-172.88,0.00029496,15]
[395102340,1764427866571,-1243.70075125,0.000295,7]
[395102341,1764427866581,-2257.774857,0.000295,2]
[395102342,1764427866592,-203.69,0.00029515,30]
[395102343,1764427866602,-152.0,0.00029556,4]
[395102344,1764427866611,-550.0,0.00029589,5]
[395102345,1764427866621,-301.1433787,0.0002959,2]
[395102346,1764427866630,-1280.94,0.000296,7]
[395102347,1764427866640,-12551.46,0.000296,2]
[395102348,1764427866650,-755.58,0.000297,7]
[395102349,1764427866660,-931.76684025,0.00029828,2]
[395102350,1764427866670,-443.0,0.00029838,14]
[395102351,1764427866680,-250.0,0.0002988,5]
[395102352,1764427866691,-250.0,0.0002988,5]
[395102353,1764427866701,-250.0,0.0002988,5]
[395102354,1764427866711,-250.0,0.0002988,5]